fUST/lending_fUST_20250927
["ID","MTS","AMOUNT","RATE_DAILY","PERIOD"]
[388019577,1758966654260,-480.0,0.00036164,9]
[388019578,1758966654269,-797.58,0.00036164,9]
[388019579,1758966654279,-480.0,0.00036164,9]
[388019580,1758966654289,-480.0,0.00036164,9]
[388019581,1758966654299,-480.0,0.00036164,9]
[388019582,1758966654308,-480.0,0.00036164,9]
[388019583,1758966654318,-480.0,0.00036164,9]
[388019584,1758966654328,-480.0,0.00036164,9]
[388019585,1758966654338,-480.0,0.00036164,9]
[388019586,1758966654347,-482.38,0.00036164,9]
[388019587,1758966654357,-480.0,0.00036164,9]
[388019588,1758966654366,-250.28790237,0.00036164,9]
[388019589,1758966654377,-480.0,0.00036164,9]
[388019590,1758966654387,-480.0,0.00036164,9]
[388019591,1758966654397,-480.0,0.00036164,9]
[388019592,1758966654411,-480.0,0.00036164,9]
[388019593,1758966654421,-480.0,0.00036164,9]
[388019594,1758966654430,-480.0,0.00036164,9]
[388019595,1758966654440,-480.0,0.00036164,9]
[388019596,1758966654449,-480.0,0.00036164,9]
[388019597,1758966654459,-480.0,0.00036164,9]
[388019598,1758966654469,-480.0,0.00036164,9]
[388019599,1758966654478,-480.0,0.00036164,9]
[388019600,1758966654487,-480.0,0.00036164,9]
[388019601,1758966654497,-705.78,0.00036164,9]
[388019602,1758966654506,-480.0,0.00036164,9]
[388019603,1758966654515,-480.0,0.00036164,9]
[388019604,1758966654524,-480.0,0.00036164,9]
[388019605,1758966654534,-624.69,0.00036164,9]
[388019606,1758966654544,-480.0,0.00036164,9]
[388019607,1758966654553,-275.62831981,0.00036164,9]
[388019608,1758966654563,-569.92122342,0.00036164,9]
[388019609,1758966654572,-480.0,0.00036164,9]
[388019610,1758966654581,-480.0,0.00036164,9]
[388019611,1758966654590,-480.0,0.00036164,9]
[388019612,1758966654600,-480.0,0.00036164,9]
[388019613,1758966654609,-480.0,0.00036164,9]
[388019614,1758966654619,-480.0,0.00036164,9]
[388019615,1758966654628,-480.0,0.00036164,9]
[388019616,1758966654637,-480.0,0.00036164,9]
[388019617,1758966654648,-657.13,0.00036164,9]
[388019618,1758966654658,-629.61341048,0.00036164,9]
[388019619,1758966654667,-480.0,0.00036164,9]
[388019620,1758966654677,-480.0,0.00036164,9]
[388019621,1758966654687,-483.03256815,0.00036164,9]
[388019622,1758966654696,-480.0,0.00036164,9]
[388019623,1758966654707,-480.0,0.00036164,9]
[388019624,1758966654716,-480.0,0.00036164,9]
[388019625,1758966654725,-480.0,0.00036164,9]
[388019626,1758966654735,-480.0,0.00036164,9]
[388019627,1758966654744,-763.89,0.00036164,9]
[388019628,1758966654754,-2206.93,0.00036164,9]
[388019629,1758966654764,-480.0,0.00036164,9]
[388019630,1758966654773,-480.0,0.00036164,9]
[388019631,1758966654783,-480.0,0.00036164,9]
[388019632,1758966654792,-480.0,0.00036164,9]
[388019633,1758966654801,-480.0,0.00036164,9]
[388019634,1758966654811,-480.0,0.00036164,9]
[388019635,1758966654820,-480.0,0.00036164,9]
[388019636,1758966654829,-480.0,0.00036164,9]
[388019637,1758966654838,-480.0,0.00036164,9]
[388019638,1758966654848,-480.0,0.00036164,9]
[388019639,1758966654857,-480.0,0.00036164,9]
[388019640,1758966654868,-480.0,0.00036164,9]
[388019641,1758966654878,-480.0,0.00036164,9]
[388019642,1758966654887,-480.0,0.00036164,9]
[388019643,1758966654896,-480.0,0.00036164,9]
[388019644,1758966654906,-480.0,0.00036164,9]
[388019645,1758966654916,-498.15,0.00036164,9]
[388019646,1758966654925,-480.0,0.00036164,9]
[388019647,1758966654935,-480.0,0.00036164,9]
[388019648,1758966654944,-1579.73,0.00036164,9]
[388019649,1758966654954,-480.0,0.00036164,9]
[388019650,1758966654964,-480.0,0.00036164,9]
[388019651,1758966654973,-480.0,0.00036164,9]
[388019652,1758966654982,-584.25471431,0.00036164,9]
[388019653,1758966654992,-480.0,0.00036164,9]
[388019654,1758966655002,-901.29,0.00036164,9]
[388019655,1758966655011,-1617.79,0.00036164,9]
[388019656,1758966655021,-538.726847,0.00036164,9]
[388019657,1758966655031,-480.0,0.00036164,9]
[388019658,1758966655041,-480.0,0.00036164,9]
[388019659,1758966655055,-485.57779046,0.00036164,9]
[388019660,1758966655065,-884.45,0.00036164,9]
[388019661,1758966655075,-480.0,0.00036164,9]
[388019662,1758966655084,-847.6,0.00036164,9]
[388019663,1758966655094,-1102.85,0.00036164,9]
[388019664,1758966655103,-480.0,0.00036164,9]
[388019665,1758966655113,-485.01187745,0.00036164,9]
[388019666,1758966655123,-582.39,0.00036164,9]
[388019667,1758966655132,-480.0,0.00036164,9]
[388019668,1758966655141,-480.0,0.00036164,9]
[388019669,1758966655150,-520.0,0.00036164,3]
[388019670,1758966655159,-480.0,0.00036164,9]
[388019671,1758966655168,-480.0,0.00036164,9]
[388019672,1758966655177,-480.0,0.00036164,9]
[388019673,1758966655186,-480.0,0.00036164,9]
[388019674,1758966655195,-546.62,0.00036164,9]
[388019675,1758966655204,-480.0,0.00036164,9]
[388019676,1758966655213,-500.0,0.00036164,9]
[388019677,1758966655222,-480.0,0.00036164,9]
[388019678,1758966655231,-480.0,0.00036164,9]
[388019679,1758966655240,-480.0,0.00036164,9]
[388019680,1758966655250,-480.0,0.00036164,9]
[388019681,1758966655259,-480.0,0.00036164,9]
[388019682,1758966655268,-480.0,0.00036164,9]
[388019683,1758966655277,-586.57526156,0.00036164,9]
[388019684,1758966655287,-480.0,0.00036164,9]
[388019685,1758966655296,-521.05274573,0.00036164,9]
[388019686,1758966655306,-480.0,0.00036164,9]
[388019687,1758966655315,-480.0,0.00036164,9]
[388019688,1758966655324,-480.0,0.00036164,9]
[388019689,1758966655334,-480.0,0.00036164,9]
[388019690,1758966655344,-480.0,0.00036164,9]
[388019691,1758966655353,-480.0,0.00036164,9]
[388019692,1758966655363,-480.0,0.00036164,9]
[388019693,1758966655372,-480.0,0.00036164,9]
[388019694,1758966655381,-480.0,0.00036164,9]
[388019695,1758966655391,-480.0,0.00036164,9]
[388019696,1758966655400,-480.0,0.00036164,9]
[388019697,1758966655412,-449.80508701,0.00036164,9]
[388019698,1758966655420,-480.0,0.00036164,9]
[388019699,1758966655429,-480.0,0.00036164,9]
[388019700,1758966655438,-811.63,0.00036164,9]
[388019701,1758966655448,-777.81,0.00036164,9]
[388019702,1758966655457,-480.0,0.00036164,9]
[388019703,1758966655467,-512.36,0.00036164,9]
[388019704,1758966655476,-522.43,0.00036164,9]
[388019705,1758966655486,-480.0,0.00036164,9]
[388019706,1758966655495,-480.0,0.00036164,9]
[388019707,1758966655505,-480.0,0.00036164,9]
[388019708,1758966655514,-480.0,0.00036164,9]
[388019709,1758966655523,-480.0,0.00036164,9]
[388019710,1758966655533,-480.0,0.00036164,9]
[388019711,1758966655543,-480.0,0.00036164,9]
[388019712,1758966655552,-480.0,0.00036164,9]
[388019713,1758966655561,-480.0,0.00036164,9]
[388019714,1758966655570,-480.0,0.00036164,9]
[388019715,1758966655581,-480.0,0.00036164,9]
[388019716,1758966655591,-396.50505287,0.00036164,9]
[388019717,1758966655600,-467.64378666,0.00036164,9]
[388019718,1758966655609,-153.66173637,0.00036164,9]
[388019719,1758966655620,-488.24619478,0.00036164,9]
[388019720,1758966655629,-480.0,0.00036164,9]
[388019721,1758966655638,-480.0,0.00036164,9]
[388019722,1758966655648,-480.0,0.00036164,9]
[388019723,1758966655657,-480.0,0.00036164,9]
[388019724,1758966655666,-480.0,0.00036164,9]
[388019725,1758966655676,-327.04283786,0.00036164,9]
[388019726,1758966655685,-480.0,0.00036164,9]
[388019727,1758966655695,-432.96996983,0.00036164,9]
[388019728,1758966655704,-480.0,0.00036164,9]
[388019729,1758966655713,-480.0,0.00036164,9]
[388019730,1758966655723,-520.25,0.00036164,9]
[388019731,1758966655732,-480.0,0.00036164,9]
[388019732,1758966655741,-1007.24,0.00036164,9]
[388019733,1758966655752,-480.0,0.00036164,9]
[388019734,1758966655762,-480.0,0.00036164,9]
[388019735,1758966655771,-480.0,0.00036164,9]
[388019736,1758966655780,-1095.95,0.00036164,9]
[388019737,1758966655789,-1143.57,0.00036164,9]
[388019738,1758966655799,-740.34,0.00036164,9]
[388019739,1758966655808,-480.0,0.00036164,9]
[388019740,1758966655817,-541.41,0.00036164,9]
[388019741,1758966655827,-480.0,0.00036164,9]
[388019742,1758966655836,-480.0,0.00036164,9]
[388019743,1758966655845,-748.9,0.00036164,9]
[388019744,1758966655855,-209.39288734,0.00036164,9]
[388019745,1758966655864,-480.0,0.00036164,9]
[388019746,1758966655873,-172.12101914,0.00036164,9]
[388019747,1758966655882,-480.0,0.00036164,9]
[388019748,1758966655891,-480.0,0.00036164,9]
[388019749,1758966655901,-480.0,0.00036164,9]
[388019750,1758966655911,-480.0,0.00036164,9]
[388019751,1758966655920,-474.37203114,0.00036164,9]
[388019752,1758966655930,-480.0,0.00036164,9]
[388019753,1758966655939,-480.0,0.00036164,9]
[388019754,1758966655948,-480.0,0.00036164,9]
[388019755,1758966655958,-582.22,0.00036164,9]
[388019756,1758966655967,-480.0,0.00036164,9]
[388019757,1758966655976,-2451.88,0.00036164,9]
[388019758,1758966655985,-480.0,0.00036164,9]
[388019759,1758966655995,-480.0,0.00036164,9]
[388019760,1758966656004,-1145.06,0.00036164,9]
[388019761,1758966656013,-480.0,0.00036164,9]
[388019762,1758966656022,-480.0,0.00036164,9]
[388019763,1758966656031,-480.0,0.00036164,9]
[388019764,1758966656041,-480.0,0.00036164,9]
[388019765,1758966656051,-480.0,0.00036164,9]
[388019766,1758966656060,-480.0,0.00036164,9]
[388019767,1758966656070,-571.22,0.00036164,9]
[388019768,1758966656080,-480.0,0.00036164,9]
[388019769,1758966656089,-480.0,0.00036164,9]
[388019770,1758966656099,-480.0,0.00036164,9]
[388019771,1758966656109,-480.0,0.00036164,9]
[388019772,1758966656118,-480.0,0.00036164,9]
[388019773,1758966656128,-480.0,0.00036164,9]
[388019774,1758966656138,-480.0,0.00036164,9]
[388019775,1758966656148,-480.0,0.00036164,9]
[388019776,1758966656158,-797.02,0.00036164,9]
[388019777,1758966656168,-499.29,0.00036164,9]
[388019778,1758966656178,-480.0,0.00036164,9]
[388019779,1758966656188,-657.87,0.00036164,9]
[388019780,1758966656198,-2994.11,0.00036164,9]
[388019781,1758966656208,-480.0,0.00036164,9]
[388019782,1758966656219,-1417.85,0.00036164,9]
[388019783,1758966656229,-480.0,0.00036164,9]
[388019784,1758966656239,-729.54,0.00036164,9]
[388019785,1758966656249,-992.5,0.00036164,9]
[388019786,1758966656258,-480.0,0.00036164,9]
[388019787,1758966656268,-480.0,0.00036164,9]
[388019788,1758966656279,-494.65,0.00036164,9]
[388019789,1758966656288,-761.03,0.00036164,9]
[388019790,1758966656298,-2199.35,0.00036164,9]
[388019791,1758966656308,-480.0,0.00036164,9]
[388019792,1758966656317,-480.0,0.00036164,9]
[388019793,1758966656327,-480.0,0.00036164,9]
[388019794,1758966656337,-864.5,0.00036164,9]
[388019795,1758966656476,-480.0,0.00036164,9]
[388019796,1758966656486,-485.07123252,0.00036164,9]
[388019797,1758966656497,-480.0,0.00036164,9]
[388019798,1758966656506,-606.35946517,0.00036164,9]
[388019799,1758966656518,-480.0,0.00036164,9]
[388019800,1758966656528,-726.98,0.00036164,9]
[388019801,1758966656537,-480.0,0.00036164,9]
[388019802,1758966656547,-1376.28,0.00036164,9]
[388019803,1758966656560,-480.0,0.00036164,9]
[388019804,1758966656569,-480.0,0.00036164,9]
[388019805,1758966656579,-480.0,0.00036164,9]
[388019806,1758966656589,-480.0,0.00036164,9]
[388019807,1758966656599,-480.0,0.00036164,9]
[388019808,1758966656609,-562.71,0.00036164,9]
[388019809,1758966656620,-480.0,0.00036164,9]
[388019810,1758966656631,-480.0,0.00036164,9]
[388019811,1758966656641,-1033.85,0.00036164,9]
[388019812,1758966656652,-480.0,0.00036164,9]
[388019813,1758966656661,-481.75559173,0.00036164,9]
[388019814,1758966656671,-480.0,0.00036164,9]
[388019815,1758966656680,-1113.49,0.00036164,9]
[388019816,1758966656690,-480.0,0.00036164,9]
[388019817,1758966656699,-1162.86,0.00036164,9]
[388019818,1758966656709,-480.0,0.00036164,9]
[388019819,1758966656719,-3133.19,0.00036164,9]
[388019820,1758966656728,-487.46669738,0.00036164,9]
[388019821,1758966656738,-480.0,0.00036164,9]
[388019822,1758966656748,-490.0066787,0.00036164,9]
[388019823,1758966656758,-480.0,0.00036164,9]
[388019824,1758966656767,-2390.15,0.00036164,9]
[388019825,1758966656777,-480.0,0.00036164,9]
[388019826,1758966656788,-1237.79,0.00036164,9]
[388019827,1758966656798,-1044.74,0.00036164,9]
[388019828,1758966656808,-480.0,0.00036164,9]
[388019829,1758966656818,-480.0,0.00036164,9]
[388019830,1758966656828,-729.87,0.00036164,9]
[388019831,1758966656838,-503.4801535,0.00036164,9]
[388019832,1758966656847,-480.0,0.00036164,9]
[388019833,1758966656858,-480.0,0.00036164,9]
[388019834,1758966656868,-512.9,0.00036164,9]
[388019835,1758966656877,-480.0,0.00036164,9]
[388019836,1758966656888,-589.01,0.00036164,9]
[388019837,1758966656898,-534.27,0.00036164,9]
[388019838,1758966656908,-480.0,0.00036164,9]
[388019839,1758966656918,-960.15,0.00036164,9]
[388019840,1758966656928,-480.0,0.00036164,9]
[388019841,1758966656937,-2202.81,0.00036164,9]
[388019842,1758966656947,-480.0,0.00036164,9]
[388019843,1758966656957,-1104.59,0.00036164,9]
[388019844,1758966656967,-1192.62,0.00036164,9]
[388019845,1758966656976,-480.0,0.00036164,9]
[388019846,1758966656986,-480.0,0.00036164,9]
[388019847,1758966656995,-480.0,0.00036164,9]
[388019848,1758966657005,-480.0,0.00036164,9]
[388019849,1758966657015,-480.0,0.00036164,9]
[388019850,1758966657025,-480.0,0.00036164,9]
[388019851,1758966657035,-480.0,0.00036164,9]
[388019852,1758966657046,-663.65,0.00036164,9]
[388019853,1758966657056,-480.0,0.00036164,9]
[388019854,1758966657066,-480.0,0.00036164,9]
[388019855,1758966657077,-480.0,0.00036164,9]
[388019856,1758966657087,-1208.5,0.00036164,9]
[388019857,1758966657097,-1085.61,0.00036164,9]
[388019858,1758966657107,-518.94,0.00036164,9]
[388019859,1758966657117,-3553.6,0.00036164,9]
[388019860,1758966657128,-480.0,0.00036164,9]
[388019861,1758966657138,-480.0,0.00036164,9]
[388019862,1758966657148,-480.0,0.00036164,9]
[388019863,1758966657158,-480.0,0.00036164,9]
[388019864,1758966657168,-480.0,0.00036164,9]
[388019865,1758966657178,-480.0,0.00036164,9]
[388019866,1758966657187,-896.11,0.00036164,9]
[388019867,1758966657196,-3521.55,0.00036164,9]
[388019868,1758966657206,-480.0,0.00036164,9]
[388019869,1758966657215,-480.0,0.00036164,9]
[388019870,1758966657225,-1893.78,0.00036164,9]
[388019871,1758966657235,-480.0,0.00036164,9]
[388019872,1758966657246,-1245.6,0.00036164,9]
[388019873,1758966657256,-480.0,0.00036164,9]
[388019874,1758966657266,-480.0,0.00036164,9]
[388019875,1758966657276,-480.0,0.00036164,9]
[388019876,1758966657286,-480.0,0.00036164,9]
[388019877,1758966657295,-480.0,0.00036164,9]
[388019878,1758966657305,-480.0,0.00036164,9]
[388019879,1758966657315,-480.0,0.00036164,9]
[388019880,1758966657324,-934.98,0.00036164,9]
[388019881,1758966657334,-480.0,0.00036164,9]
[388019882,1758966657345,-1407.89,0.00036164,9]
[388019883,1758966657355,-493.19515683,0.00036164,9]
[388019884,1758966657364,-695.67,0.00036164,9]
[388019885,1758966657377,-480.0,0.00036164,9]
[388019886,1758966657387,-809.65,0.00036164,9]
[388019887,1758966657396,-480.0,0.00036164,7]
[388019888,1758966657409,-480.0,0.00036164,9]
[388019889,1758966657418,-480.0,0.00036164,9]
[388019890,1758966657428,-1059.74,0.00036164,9]
[388019891,1758966657438,-5378.31,0.00036164,9]
[388019892,1758966657448,-480.0,0.00036164,9]
[388019893,1758966657457,-480.0,0.00036164,9]
[388019894,1758966657467,-1567.83,0.00036164,9]
[388019895,1758966657477,-480.0,0.00036164,9]
[388019896,1758966657487,-480.0,0.00036164,9]
[388019897,1758966657496,-480.0,0.00036164,9]
[388019898,1758966657505,-480.0,0.00036164,9]
[388019899,1758966657514,-480.0,0.00036164,9]
[388019900,1758966657523,-710.01,0.00036164,9]
[388019901,1758966657533,-710.01,0.00036164,9]
[388019902,1758966657542,-480.0,0.00036164,9]
[388019903,1758966657551,-410.12835956,0.00036164,9]
[388019904,1758966657561,-500.0,0.00036164,9]
[388019905,1758966657570,-400.64478287,0.00036164,9]
[388019906,1758966657580,-482.07180273,0.00036164,9]
[388019907,1758966657589,-776.45,0.00036164,9]
[388019908,1758966657599,-480.0,0.00036164,9]
[388019909,1758966657609,-1797.55,0.00036164,9]
[388019910,1758966657620,-480.0,0.00036164,9]
[388019911,1758966657631,-480.0,0.00036164,9]
[388019912,1758966657640,-2320.13,0.00036164,9]
[388019913,1758966657650,-480.0,0.00036164,9]
[388019914,1758966657660,-480.0,0.00036164,9]
[388019915,1758966657670,-480.0,0.00036164,9]
[388019916,1758966657680,-487.76956214,0.00036164,9]
[388019917,1758966657689,-480.0,0.00036164,9]
[388019918,1758966657698,-852.61,0.00036164,9]
[388019919,1758966657708,-480.0,0.00036164,9]
[388019920,1758966657718,-480.0,0.00036164,9]
[388019921,1758966657727,-482.55780223,0.00036164,9]
[388019922,1758966657736,-480.0,0.00036164,9]
[388019923,1758966657746,-817.82,0.00036164,9]
[388019924,1758966657755,-480.0,0.00036164,9]
[388019925,1758966657764,-480.0,0.00036164,9]
[388019926,1758966657773,-480.0,0.00036164,9]
[388019927,1758966657786,-480.0,0.00036164,9]
[388019928,1758966657796,-480.0,0.00036164,9]
[388019929,1758966657805,-480.0,0.00036164,9]
[388019930,1758966657815,-480.0,0.00036164,9]
[388019931,1758966657824,-480.0,0.00036164,9]
[388019932,1758966657834,-1456.61,0.00036164,9]
[388019933,1758966657844,-498.92318362,0.00036164,9]
[388019934,1758966657854,-480.0,0.00036164,9]
[388019935,1758966657863,-1004.68,0.00036164,9]
[388019936,1758966657875,-480.0,0.00036164,9]
[388019937,1758966657885,-1441.83,0.00036164,9]
[388019938,1758966657894,-687.2,0.00036164,9]
[388019939,1758966657904,-480.0,0.00036164,9]
[388019940,1758966657913,-480.0,0.00036164,9]
[388019941,1758966657923,-480.0,0.00036164,9]
[388019942,1758966657932,-2667.68,0.00036164,9]
[388019943,1758966657942,-480.0,0.00036164,9]
[388019944,1758966657951,-480.0,0.00036164,9]
[388019945,1758966657961,-486.24,0.00036164,9]
[388019946,1758966657970,-721.14,0.00036164,9]
[388019947,1758966657980,-480.0,0.00036164,9]
[388019948,1758966657990,-3342.96,0.00036164,9]
[388019949,1758966657999,-480.0,0.00036164,9]
[388019950,1758966658009,-480.0,0.00036164,9]
[388019951,1758966658020,-4872.35,0.00036164,9]
[388019952,1758966658029,-480.0,0.00036164,9]
[388019953,1758966658039,-480.0,0.00036164,9]
[388019954,1758966658049,-1500.9,0.00036164,9]
[388019955,1758966658058,-8390.61,0.00036164,9]
[388019956,1758966658068,-480.0,0.00036164,9]
[388019957,1758966658077,-480.0,0.00036164,9]
[388019958,1758966658087,-8207.9,0.00036164,9]
[388019959,1758966658096,-480.0,0.00036164,9]
[388019960,1758966658106,-1152.65,0.00036164,9]
[388019961,1758966658115,-480.0,0.00036164,9]
[388019962,1758966658127,-480.0,0.00036164,9]
[388019963,1758966658136,-480.0,0.00036164,9]
[388019964,1758966658146,-480.0,0.00036164,9]
[388019965,1758966658155,-480.0,0.00036164,9]
[388019966,1758966658164,-482.2194688,0.00036164,9]
[388019967,1758966658174,-921.08,0.00036164,9]
[388019968,1758966658184,-582.96,0.00036164,9]
[388019969,1758966658193,-3281.9,0.00036164,9]
[388019970,1758966658203,-596.97,0.00036164,9]
[388019971,1758966658213,-2334.14,0.00036164,9]
[388019972,1758966658223,-803.84,0.00036164,9]
[388019973,1758966658234,-480.0,0.00036164,9]
[388019974,1758966658244,-688.1,0.00036164,9]
[388019975,1758966658254,-480.0,0.00036164,9]
[388019976,1758966658263,-719.27,0.00036164,9]
[388019977,1758966658273,-2183.08,0.00036164,9]
[388019978,1758966658282,-480.0,0.00036164,9]
[388019979,1758966658291,-480.0,0.00036164,9]
[388019980,1758966658301,-723.3,0.00036164,9]
[388019981,1758966658310,-480.0,0.00036164,9]
[388019982,1758966658320,-480.0,0.00036164,9]
[388019983,1758966658330,-512.0,0.00036164,9]
[388019984,1758966658340,-480.0,0.00036164,9]
[388019985,1758966658349,-597.43,0.00036164,9]
[388019986,1758966658359,-667.72,0.00036164,9]
[388019987,1758966658369,-545.36,0.00036164,9]
[388019988,1758966658378,-480.0,0.00036164,9]
[388019989,1758966658388,-1048.06,0.00036164,9]
[388019990,1758966658398,-480.0,0.00036164,9]
[388019991,1758966658407,-2744.62,0.00036164,9]
[388019992,1758966658416,-480.0,0.00036164,9]
[388019993,1758966658426,-480.0,0.00036164,9]
[388019994,1758966658435,-480.0,0.00036164,9]
[388019995,1758966658445,-501.77,0.00036164,9]
[388019996,1758966658455,-1000.0,0.00036164,9]
[388019997,1758966658465,-1896.58,0.00036164,9]
[388019998,1758966658474,-480.0,0.00036164,9]
[388019999,1758966658483,-480.0,0.00036164,9]
[388020000,1758966658492,-480.0,0.00036164,9]
[388020001,1758966658502,-480.0,0.00036164,9]
[388020002,1758966658511,-587.89,0.00036164,9]
[388020003,1758966658520,-480.0,0.00036164,9]
[388020004,1758966658529,-3611.53,0.00036164,9]
[388020005,1758966658538,-480.0,0.00036164,9]
[388020006,1758966658548,-3921.83,0.00036164,9]
[388020007,1758966658557,-739.34,0.00036164,9]
[388020008,1758966658567,-480.0,0.00036164,9]
[388020009,1758966658576,-480.0,0.00036164,9]
[388020010,1758966658585,-480.0,0.00036164,9]
[388020011,1758966658595,-1044.96,0.00036164,9]
[388020012,1758966658605,-3854.54,0.00036164,9]
[388020013,1758966658615,-480.0,0.00036164,9]
[388020014,1758966658626,-711.81,0.00036164,9]
[388020015,1758966658636,-2061.79,0.00036164,9]
[388020016,1758966658646,-4529.11,0.00036164,9]
[388020017,1758966658655,-908.95,0.00036164,9]
[388020018,1758966658664,-480.0,0.00036164,9]
[388020019,1758966658674,-4586.51,0.00036164,9]
[388020020,1758966658684,-480.0,0.00036164,9]
[388020021,1758966658693,-2282.96,0.00036164,9]
[388020022,1758966658702,-480.0,0.00036164,9]
[388020023,1758966658711,-480.0,0.00036164,9]
[388020024,1758966658720,-642.28,0.00036164,9]
[388020025,1758966658730,-1558.66,0.00036164,9]
[388020026,1758966658739,-522.97,0.00036164,9]
[388020027,1758966658748,-480.0,0.00036164,9]
[388020028,1758966658758,-480.0,0.00036164,9]
[388020029,1758966658767,-480.0,0.00036164,9]
[388020030,1758966658777,-563.22,0.00036164,9]
[388020031,1758966658787,-480.0,0.00036164,9]
[388020032,1758966658796,-2342.73,0.00036164,9]
[388020033,1758966658806,-480.0,0.00036164,9]
[388020034,1758966658815,-2094.05,0.00036164,9]
[388020035,1758966658824,-15362.97,0.00036164,9]
[388020036,1758966658835,-8443.92,0.00036164,9]
[388020037,1758966658981,-480.0,0.00036164,9]
[388020038,1758966658991,-480.0,0.00036164,9]
[388020039,1758966659000,-480.0,0.00036164,9]
[388020040,1758966659010,-1581.11,0.00036164,9]
[388020041,1758966659019,-480.0,0.00036164,9]
[388020042,1758966659029,-480.0,0.00036164,9]
[388020043,1758966659039,-534.35,0.00036164,9]
[388020044,1758966659049,-480.0,0.00036164,9]
[388020045,1758966659057,-480.0,0.00036164,9]
[388020046,1758966659067,-1385.88,0.00036164,9]
[388020047,1758966659077,-480.0,0.00036164,9]
[388020048,1758966659086,-480.0,0.00036164,9]
[388020049,1758966659095,-583.55,0.00036164,9]
[388020050,1758966659105,-763.91,0.00036164,9]
[388020051,1758966659116,-602.81,0.00036164,9]
[388020052,1758966659127,-480.0,0.00036164,9]
[388020053,1758966659136,-346.9912608,0.00036164,9]
[388020054,1758966659146,-480.0,0.00036164,9]
[388020055,1758966659155,-987.64,0.00036164,9]
[388020056,1758966659164,-4012.81,0.00036164,9]
[388020057,1758966659174,-616.43,0.00036164,9]
[388020058,1758966659187,-480.0,0.00036164,9]
[388020059,1758966659203,-480.0,0.00036164,9]
[388020060,1758966659213,-4465.37,0.00036164,9]
[388020061,1758966659223,-480.0,0.00036164,9]
[388020062,1758966659232,-480.0,0.00036164,9]
[388020063,1758966659242,-852.15,0.00036164,9]
[388020064,1758966659252,-480.0,0.00036164,9]
[388020065,1758966659262,-480.0,0.00036164,9]
[388020066,1758966659271,-480.0,0.00036164,9]
[388020067,1758966659280,-480.0,0.00036164,9]
[388020068,1758966659290,-480.0,0.00036164,9]
[388020069,1758966659299,-480.0,0.00036164,9]
[388020070,1758966659308,-1098.08,0.00036164,9]
[388020071,1758966659317,-480.0,0.00036164,9]
[388020072,1758966659327,-480.0,0.00036164,9]
[388020073,1758966659336,-480.0,0.00036164,9]
[388020074,1758966659347,-480.0,0.00036164,9]
[388020075,1758966659356,-2241.75,0.00036164,9]
[388020076,1758966659365,-603.43,0.00036164,9]